Workbook

Sheet Resumo
B1: Planilha resumo de valores
B2: CATEGORIA | C2: Qtde. de Postos | D2: Valor Unitário | E2: Valor Mensal | F2: Valor Anual
B3: Montes Claros - motorista | C3: 5 | D3: ='Motorista - Montes Claros'!J118 -> 6435.81 | E3: =(C3*D3) -> 32179.05 | F3: =(E3*12) -> 386148.6
B4: Três Marias - motorista | C4: 1 | D4: ='Motorista - Três Marias'!J118 -> 6447.95 | E4: =(C4*D4) -> 6447.95 | F4: =(E4*12) -> 77375.4
B5: Nova Porteirinha - motorista | C5: 1 | D5: ='Motorista -Nova Porteirinha'!J118 -> 6585.92 | E5: =(C5*D5) -> 6585.92 | F5: 79031.04
B6: Montes Claros - supervisor | C6: 1 | D6: ='Supervisor - Montes Claros'!J118 -> 7718.18 | E6: =C6*D6 -> 7718.18 | F6: =E6*12 -> 92618.16
B7: Subtotal: | E7: =SUM(E3:E5) -> 45212.92 | F7: =SUM(F3:F6) -> 635173.2
B8: Total | F8: =F7 -> 635173.2

Sheet Motorista - Montes Claros
A1: 1ª Superintendência Regional – Montes Claros / MG | B1: Discriminação dos Serviços
B2: B | C2: Município | J2: Montes Claros/MG
B3: C | C3: Ano do Acordo, Convenção ou Dissídio Coletivo | J3: 2023
B4: D | C4: Nº de meses de execução contratual | J4: 12
B6: Identificação do Serviço
B7: Tipo de Serviço | D7: Unidade de Medida | F7: Quantidade total a contratar
B8: Motorista | D8: SERVIÇO | F8: 5
B10: Dados para composição dos custos referentes à mão-de-obra
B11: 1 | C11: Tipo de serviço (mesmo serviço com características distintas) | J11: =B8 -> Motorista
B12: 2 | C12: Classificação Brasileira de Ocupações (CBO) | J12: 7823-05; 7823-10 e 7825-10
B13: 3 | C13: Salário Nominativo da Categoria Profissional | J13: 2263.63
B14: 4 | C14: Categoria profissional (vinculada à execução contratual) | J14: Motorista
B15: 5 | C15: Data base da categoria (dia/mês/ano) | J15: 2023-01-01
B17: MÓDULO 1 - COMPOSIÇÃO DA REMUNERAÇÃO
B18: 1 | C18: COMPOSIÇÃO DA REMUNERAÇÃO | I18: % | J18: VALOR (R$)
B19: A | C19: Salário Base | J19: =J13 -> 2263.63
B20: B | C20: Adicional Periculosidade | J20: 0
B21: C | C21: Adicional Insalubridade | J21: =I21*J19 -> 0
B22: D | C22: Adicional Noturno | J22: 0
B23: E | C23: Adicional de Hora Noturna Reduzida | J23: 0
B24: F | C24: Outros (especificar) | J24: 0
B25: TOTAL DO MÓDULO 1 | J25: =TRUNC(SUM(J19:J24),2) -> 2263.63
B27: MÓDULO 2 – ENCARGOS E BENEFÍCIOS ANUAIS, MENSAIS E DIÁRIOS
B28: Submódulo 2.1 - 13º Salário, Férias e Adicional de Férias | I28: % | J28: VALOR (R$)
B29: A | C29: 13 (Décimo-terceiro) salário | I29: 0.0833 | J29: =I29*J25 -> 188.560379
B30: B | C30: Férias e Adicional de Férias | I30: 0.121 | J30: =I30*J25 -> 273.89923
B31: TOTAL SUBMÓDULO 2.1 | I31: =TRUNC(SUM(I29:I30),4) -> 0.2043 | J31: =TRUNC(SUM(J29:J30),2) -> 462.45
B33: Submódulo 2.2 - GPS, FGTS e Outras Contribuições | I33: % | J33: VALOR (R$)
B34: A | C34: INSS | I34: 0.2 | J34: =$I34*($J$31+$J$25) -> 545.216
B35: B | C35: Salário Educação | I35: 0.025 | J35: =$I35*($J$31+$J$25) -> 68.152
B36: C | C36: SAT | I36: 0.03 | J36: 81.7824
B37: D | C37: SESC ou SESI | I37: 0.015 | J37: 40.8912
B38: E | C38: SENAI - SENAC | I38: 0.01 | J38: 27.2608
B39: F | C39: SEBRAE | I39: 0.006 | J39: 16.35648
B40: G | C40: INCRA | I40: 0.002 | J40: 5.45216
B41: H | C41: FGTS | I41: 0.08 | J41: 218.0864
B42: TOTAL SUBMÓDULO 2.2 | I42: =SUM(I34:I41) -> 0.368 | J42: =TRUNC(SUM(J34:J41),2) -> 1003.19
B44: Submódulo 2.3 - Benefícios Mensais e Diários | J44: VALOR (R$)
B45: A | C45: Transporte | I45: - | J45: =((4*2)*22)-(6%*J25) -> 40.1822
B46: B | C46: Auxílio-Refeição/Alimentação | I46: - | J46: =26.48*22*80% -> 466.048
B47: C | C47: Seguro de vida | I47: - | J47: 20
B48: D | C48: Auxílio Saúde - PAF | I48: - | J48: 20.05
B49: E | C49: Contribuição Assistencial Patronal | I49: - | J49: 9.77
B50: F | C50: Outros (especificar) | I50: -
B51: TOTAL SUBMÓDULO 2.3 | J51: =TRUNC(SUM(J45:J50),2) -> 556.05
B53: QUADRO-RESUMO DO MÓDULO 2 - ENCARGOS, BENEFÍCIOS ANUAIS, MENSAIS E DIÁRIOS
B54: Módulo 2 - Encargos, Benefícios Anuais, Mensais e Diários | J54: VALOR (R$)
B55: 2.1 | C55: 13º Salário, Férias e Adicional de Férias | J55: =J31 -> 462.45
B56: 2.2 | C56: GPS, FGTS e Outras Contribuições | J56: =J42 -> 1003.19
B57: 2.3 | C57: Benefícios Mensais e Diários | J57: =J51 -> 556.05
B58: TOTAL DO MÓDULO 2 | J58: =TRUNC(SUM(J55:J57),2) -> 2021.69
B60: MÓDULO 3 – PROVISÃO PARA RESCISÃO
B61: 3 | C61: PROVISÃO PARA RESCISÃO | I61: % | J61: VALOR (R$)
B62: A | C62: Aviso Prévio Indenizado | I62: 0.0284 | J62: =I62*$J$25 -> 64.287092
B63: B | C63: Incidência do FGTS sobre Aviso Prévio Indenizado | I63: =0.08*I62 -> 0.002272 | J63: 5.14296736
B64: C | C64: Multa do FGTS e Contribuição Social sobre o Aviso Prévio Indenizado | I64: 0.05 | J64: 113.1815
B65: D | C65: Aviso Prévio Trabalhado | I65: 0.01 | J65: 22.6363
B66: E | C66: Incidência dos encargos do submódulo 2.2 sobre Aviso Prévio Trabalhado | I66: =I42*I65 -> 0.00368 | J66: 8.3301584
B67: F | C67: Multa do FGTS e Contribuição Social sobre o Aviso Prévio Trabalhado. | I67: 0.05 | J67: 113.1815
B68: TOTAL DO MÓDULO 3 | I68: =TRUNC(SUM(I62:I67),4) -> 0.1443 | J68: =TRUNC(SUM(J62:J67),2) -> 326.75
B70: MÓDULO 4 – CUSTO DE REPOSIÇÃO DO PROFISSIONAL AUSENTE
B71: Submódulo 4.1 - Ausências Legais | I71: % | J71: VALOR (R$)
B72: A | C72: Férias | I72: 0.0833 | J72: =I72*$J$25 -> 188.560379
B73: B | C73: Ausências Legais | I73: 0.025 | J73: =I73*$J$25 -> 56.59075
B74: C | C74: Licença Paternidade | I74: 0.025 | J74: =I74*$J$25 -> 56.59075
B75: D | C75: Ausência por Acidente de Trabalho | I75: 0.02 | J75: =I75*$J$25 -> 45.2726
B76: E | C76: Afastamento Maternidade | I76: 0.03 | J76: =I76*$J$25 -> 67.9089
B77: F | C77: Outros (especificar)
B78: TOTAL SUBMÓDULO 4.1 | J78: =TRUNC(SUM(J72:J77),2) -> 414.92
B80: Submódulo 4.2 - Intrajornada | I80: % | J80: VALOR (R$)
B81: A | C81: Intervalo para Repouso ou Alimentação | I81: 0 | J81: =$J$25*I81 -> 0
B82: TOTAL SUBMÓDULO 4.2 | I82: =TRUNC(SUM(I81),4) -> 0 | J82: =TRUNC(SUM(J81),2) -> 0
B84: QUADRO-RESUMO DO MÓDULO 4 - CUSTO DE REPOSIÇÃO DO PROFISSIONAL AUSENTE
B85: Módulo 4 - Custo de Reposição do Profissional Ausente | J85: VALOR (R$)
B86: 4.1 | C86: Ausências Legais | J86: =J78 -> 414.92
B87: 4.2 | C87: Intrajornada | J87: =J82 -> 0
B88: TOTAL DO MÓDULO 4 | J88: =TRUNC(SUM(J86:J87),2) -> 414.92
B90: MÓDULO 5 – INSUMOS DIVERSOS
B91: 5 | C91: INSUMOS DIVERSOS | J91: VALOR (R$)
B92: A | C92: Uniformes | I92: - | J92: =Uniformes_Equip.!E6 -> 109.2786111
B93: B | C93: Materiais | I93: - | J93: -
B94: C | C94: Equipamentos | I94: - | J94: 0
B95: D | C95: Outros | I95: - | J95: 0
B96: TOTAL DO MÓDULO 5 | I96: - | J96: =SUM(J92:J95) -> 109.2786111
B98: MÓDULO 6 – CUSTOS INDIRETOS, TRIBUTOS E LUCRO
B99: 6 | C99: CUSTOS INDIRETOS, TRIBUTOS E LUCRO | I99: % | J99: VALOR (R$)
B100: A | C100: Custos Indiretos | I100: 0.03 | J100: =TRUNC(I100*J116,2) -> 154.08
B101: B | C101: Lucro | I101: 0.0675 | J101: =TRUNC(I101*(J100+J116),2) -> 357.09
B102: C | C102: TRIBUTOS | F102: Base Cálculo | H102: =ROUND((J116+J100+J101)/(1-I102),2) -> 6435.82 | I102: =I103+I104+I105 -> 0.1225 | J102: =H102*I102 -> 788.38795
B103: C.1 | C103: PIS | I103: 0.0165 | J103: =H102*I103 -> 106.19103
B104: C.2 | C104: COFINS | I104: 0.076 | J104: =H102*I104 -> 489.12232
B105: C.3 | C105: ISSQN | I105: 0.03 | J105: =H102*I105 -> 193.0746
B106: TOTAL DO MÓDULO 6 | J106: =J100+J101+J102 -> 1299.55795
B109: QUADRO RESUMO DO CUSTO POR EMPREGADO
B110: Mão-de-Obra vinculada à execução contratual (valor por empregado) | J110: VALOR (R$)
B111: A | C111: =B17 -> MÓDULO 1 - COMPOSIÇÃO DA REMUNERAÇÃO | J111: =J25 -> 2263.63
B112: B | C112: =B27 -> MÓDULO 2 – ENCARGOS E BENEFÍCIOS ANUAIS, MENSAIS E DIÁRIOS | J112: =J58 -> 2021.69
B113: C | C113: =B60 -> MÓDULO 3 – PROVISÃO PARA RESCISÃO | J113: =J68 -> 326.75
B114: D | C114: =B70 -> MÓDULO 4 – CUSTO DE REPOSIÇÃO DO PROFISSIONAL AUSENTE | J114: =J88 -> 414.92
B115: E | C115: =B90 -> MÓDULO 5 – INSUMOS DIVERSOS | J115: =J96 -> 109.2786111
C116: Subtotal (A + B + C + D + E) | J116: =TRUNC(SUM(J111:J115),2) -> 5136.26
B117: F | C117: =B98 -> MÓDULO 6 – CUSTOS INDIRETOS, TRIBUTOS E LUCRO | J117: =J106 -> 1299.55795
B118: PREÇO TOTAL POR EMPREGADO | J118: =TRUNC(SUM(J116:J117),2) -> 6435.81

Sheet Motorista - Três Marias
A1: 1ª Superintendência Regional – Montes Claros / MG | B1: Discriminação dos Serviços
B2: B | C2: Município | J2: Três Marias/MG
B3: C | C3: Ano do Acordo, Convenção ou Dissídio Coletivo | J3: 2023
B4: D | C4: Nº de meses de execução contratual | J4: 12
B6: Identificação do Serviço
B7: Tipo de Serviço | D7: Unidade de Medida | F7: Quantidade total a contratar
B8: Motorista | D8: SERVIÇO | F8: 1
B10: Dados para composição dos custos referentes à mão-de-obra
B11: 1 | C11: Tipo de serviço (mesmo serviço com características distintas) | J11: =B8 -> Motorista
B12: 2 | C12: Classificação Brasileira de Ocupações (CBO) | J12: 7823-05; 7823-10 e 7825-10
B13: 3 | C13: Salário Nominativo da Categoria Profissional | J13: 2284.25
B14: 4 | C14: Categoria profissional (vinculada à execução contratual) | J14: Motorista
B15: 5 | C15: Data base da categoria (dia/mês/ano) | J15: 2023-01-01
B17: MÓDULO 1 - COMPOSIÇÃO DA REMUNERAÇÃO
B18: 1 | C18: COMPOSIÇÃO DA REMUNERAÇÃO | I18: % | J18: VALOR (R$)
B19: A | C19: Salário Base | J19: =J13 -> 2284.25
B20: B | C20: Adicional Periculosidade | J20: 0
B21: C | C21: Adicional Insalubridade | J21: =I21*J19 -> 0
B22: D | C22: Adicional Noturno | J22: 0
B23: E | C23: Adicional de Hora Noturna Reduzida | J23: 0
J24: 0
B25: G | C25: Outros (especificar) | J25: 0
B26: TOTAL DO MÓDULO 1 | J26: =TRUNC(SUM(J19:J25),2) -> 2284.25
B28: MÓDULO 2 – ENCARGOS E BENEFÍCIOS ANUAIS, MENSAIS E DIÁRIOS
B29: Submódulo 2.1 - 13º Salário, Férias e Adicional de Férias | I29: % | J29: VALOR (R$)
B30: A | C30: 13 (Décimo-terceiro) salário | I30: 0.0833 | J30: =I30*J26 -> 190.278025
B31: B | C31: Férias e Adicional de Férias | I31: 0.121 | J31: =I31*J26 -> 276.39425
B32: TOTAL SUBMÓDULO 2.1 | I32: =TRUNC(SUM(I30:I31),4) -> 0.2043 | J32: =TRUNC(SUM(J30:J31),2) -> 466.67
B34: Submódulo 2.2 - GPS, FGTS e Outras Contribuições | I34: % | J34: VALOR (R$)
B35: A | C35: INSS | I35: 0.2 | J35: =$I35*($J$26+$J$32) -> 550.184
B36: B | C36: Salário Educação | I36: 0.025 | J36: =$I36*($J$26+$J$32) -> 68.773
B37: C | C37: SAT | I37: 0.03 | J37: 82.5276
B38: D | C38: SESC ou SESI | I38: 0.015 | J38: 41.2638
B39: E | C39: SENAI - SENAC | I39: 0.01 | J39: 27.5092
B40: F | C40: SEBRAE | I40: 0.006 | J40: 16.50552
B41: G | C41: INCRA | I41: 0.002 | J41: 5.50184
B42: H | C42: FGTS | I42: 0.08 | J42: 220.0736
B43: TOTAL SUBMÓDULO 2.2 | I43: =SUM(I35:I42) -> 0.368 | J43: =TRUNC(SUM(J35:J42),2) -> 1012.33
B45: Submódulo 2.3 - Benefícios Mensais e Diários | J45: VALOR (R$)
B46: A | C46: Transporte | I46: - | J46: =((4*2)*22)-(6%*J26) -> 38.945
B47: B | C47: Auxílio-Refeição/Alimentação | I47: - | J47: =26.48*22*80% -> 466.048
B48: D | C48: Seguro de vida | I48: - | J48: 20
B49: E | C49: Auxílio Saúde - PAF | I49: -
B50: F | C50: Outros (especificar) | I50: -
B51: TOTAL SUBMÓDULO 2.3 | J51: =TRUNC(SUM(J46:J50),2) -> 524.99
B53: QUADRO-RESUMO DO MÓDULO 2 - ENCARGOS, BENEFÍCIOS ANUAIS, MENSAIS E DIÁRIOS
B54: Módulo 2 - Encargos, Benefícios Anuais, Mensais e Diários | J54: VALOR (R$)
B55: 2.1 | C55: 13º Salário, Férias e Adicional de Férias | J55: =J32 -> 466.67
B56: 2.2 | C56: GPS, FGTS e Outras Contribuições | J56: =J43 -> 1012.33
B57: 2.3 | C57: Benefícios Mensais e Diários | J57: =J51 -> 524.99
B58: TOTAL DO MÓDULO 2 | J58: =TRUNC(SUM(J55:J57),2) -> 2003.99
B60: MÓDULO 3 – PROVISÃO PARA RESCISÃO
B61: 3 | C61: PROVISÃO PARA RESCISÃO | I61: % | J61: VALOR (R$)
B62: A | C62: Aviso Prévio Indenizado | I62: 0.0284 | J62: =I62*$J$26 -> 64.8727
B63: B | C63: Incidência do FGTS sobre Aviso Prévio Indenizado | I63: =0.08*I62 -> 0.002272 | J63: 5.189816
B64: C | C64: Multa do FGTS e Contribuição Social sobre o Aviso Prévio Indenizado | I64: 0.05 | J64: 114.2125
B65: D | C65: Aviso Prévio Trabalhado | I65: 0.01 | J65: 22.8425
B66: E | C66: Incidência dos encargos do submódulo 2.2 sobre Aviso Prévio Trabalhado | I66: =I43*I65 -> 0.00368 | J66: 8.40604
B67: F | C67: Multa do FGTS e Contribuição Social sobre o Aviso Prévio Trabalhado. | I67: 0.05 | J67: 114.2125
B68: TOTAL DO MÓDULO 3 | I68: =TRUNC(SUM(I62:I67),4) -> 0.1443 | J68: =TRUNC(SUM(J62:J67),2) -> 329.73
B70: MÓDULO 4 – CUSTO DE REPOSIÇÃO DO PROFISSIONAL AUSENTE
B71: Submódulo 4.1 - Ausências Legais | I71: % | J71: VALOR (R$)
B72: A | C72: Férias | I72: 0.0833 | J72: =I72*$J$26 -> 190.278025
B73: B | C73: Ausências Legais | I73: 0.025 | J73: =I73*$J$26 -> 57.10625
B74: C | C74: Licença Paternidade | I74: 0.025 | J74: =I74*$J$26 -> 57.10625
B75: D | C75: Ausência por Acidente de Trabalho | I75: 0.02 | J75: =I75*$J$26 -> 45.685
B76: E | C76: Afastamento Maternidade | I76: 0.03 | J76: =I76*$J$26 -> 68.5275
B77: F | C77: Outros (especificar)
B78: TOTAL SUBMÓDULO 4.1 | J78: =TRUNC(SUM(J72:J77),2) -> 418.7
B80: Submódulo 4.2 - Intrajornada | I80: % | J80: VALOR (R$)
B81: A | C81: Intervalo para Repouso ou Alimentação | I81: 0 | J81: =$J$26*I81 -> 0
B82: TOTAL SUBMÓDULO 4.2 | I82: =TRUNC(SUM(I81),4) -> 0 | J82: =TRUNC(SUM(J81),2) -> 0
B84: QUADRO-RESUMO DO MÓDULO 4 - CUSTO DE REPOSIÇÃO DO PROFISSIONAL AUSENTE
B85: Módulo 4 - Custo de Reposição do Profissional Ausente | J85: VALOR (R$)
B86: 4.1 | C86: Ausências Legais | J86: =J78 -> 418.7
B87: 4.2 | C87: Intrajornada | J87: =J82 -> 0
B88: TOTAL DO MÓDULO 4 | J88: =TRUNC(SUM(J86:J87),2) -> 418.7
B90: MÓDULO 5 – INSUMOS DIVERSOS
B91: 5 | C91: INSUMOS DIVERSOS | J91: VALOR (R$)
B92: A | C92: Uniformes | I92: - | J92: =Uniformes_Equip.!E6 -> 109.2786111
B93: B | C93: Materiais (mensal + quadrimestral + utensilios) | I93: - | J93: -
B94: C | C94: Equipamentos (EQUIPAMENTOS DE LIMPEZA) | I94: - | J94: 0
B95: D | C95: Outros | I95: - | J95: 0
B96: TOTAL DO MÓDULO 5 | I96: - | J96: =SUM(J92:J95) -> 109.2786111
B98: MÓDULO 6 – CUSTOS INDIRETOS, TRIBUTOS E LUCRO
B99: 6 | C99: CUSTOS INDIRETOS, TRIBUTOS E LUCRO | I99: % | J99: VALOR (R$)
B100: A | C100: Custos Indiretos | I100: 0.03 | J100: =TRUNC(I100*J116,2) -> 154.37
B101: B | C101: Lucro | I101: 0.0675 | J101: =TRUNC(I101*(J100+J116),2) -> 357.77
B102: C | C102: TRIBUTOS | F102: Base Cálculo | H102: =ROUND((J116+J100+J101)/(1-I102),2) -> 6447.95 | I102: =I103+I104+I105 -> 0.1225 | J102: =H102*I102 -> 789.873875
B103: C.1 | C103: PIS | I103: 0.0165 | J103: =H102*I103 -> 106.391175
B104: C.2 | C104: COFINS | I104: 0.076 | J104: =H102*I104 -> 490.0442
B105: C.3 | C105: ISSQN | I105: 0.03 | J105: =H102*I105 -> 193.4385
B106: TOTAL DO MÓDULO 6 | J106: =J100+J101+J102 -> 1302.013875
B109: QUADRO RESUMO DO CUSTO POR EMPREGADO
B110: Mão-de-Obra vinculada à execução contratual (valor por empregado) | J110: VALOR (R$)
B111: A | C111: =B17 -> MÓDULO 1 - COMPOSIÇÃO DA REMUNERAÇÃO | J111: =J26 -> 2284.25
B112: B | C112: =B28 -> MÓDULO 2 – ENCARGOS E BENEFÍCIOS ANUAIS, MENSAIS E DIÁRIOS | J112: =J58 -> 2003.99
B113: C | C113: =B60 -> MÓDULO 3 – PROVISÃO PARA RESCISÃO | J113: =J68 -> 329.73
B114: D | C114: =B70 -> MÓDULO 4 – CUSTO DE REPOSIÇÃO DO PROFISSIONAL AUSENTE | J114: =J88 -> 418.7
B115: E | C115: =B90 -> MÓDULO 5 – INSUMOS DIVERSOS | J115: =J96 -> 109.2786111
C116: Subtotal (A + B + C + D + E) | J116: =TRUNC(SUM(J111:J115),2) -> 5145.94
B117: F | C117: =B98 -> MÓDULO 6 – CUSTOS INDIRETOS, TRIBUTOS E LUCRO | J117: =J106 -> 1302.013875
B118: PREÇO TOTAL POR EMPREGADO | J118: =TRUNC(SUM(J116:J117),2) -> 6447.95

Sheet Motorista -Nova Porteirinha
A1: 1ª Superintendência Regional – Montes Claros / MG | B1: Discriminação dos Serviços
B2: B | C2: Município | J2: Nova Porteirinha/MG
B3: C | C3: Ano do Acordo, Convenção ou Dissídio Coletivo | J3: 2023
B4: D | C4: Nº de meses de execução contratual | J4: 12
B6: Identificação do Serviço
B7: Tipo de Serviço | D7: Unidade de Medida | F7: Quantidade total a contratar
B8: Motorista | D8: SERVIÇO | F8: 1
B10: Dados para composição dos custos referentes à mão-de-obra
B11: 1 | C11: Tipo de serviço (mesmo serviço com características distintas) | J11: =B8 -> Motorista
B12: 2 | C12: Classificação Brasileira de Ocupações (CBO) | J12: 7823-05; 7823-10 e 7825-10
B13: 3 | C13: Salário Nominativo da Categoria Profissional | J13: 2263.63
B14: 4 | C14: Categoria profissional (vinculada à execução contratual) | J14: Motorista
B15: 5 | C15: Data base da categoria (dia/mês/ano) | J15: 2023-01-01
B17: MÓDULO 1 - COMPOSIÇÃO DA REMUNERAÇÃO
B18: 1 | C18: COMPOSIÇÃO DA REMUNERAÇÃO | I18: % | J18: VALOR (R$)
B19: A | C19: Salário Base | J19: =J13 -> 2263.63
B20: B | C20: Adicional Periculosidade | J20: 0
B21: C | C21: Adicional Insalubridade | J21: =I21*J19 -> 0
B22: D | C22: Adicional Noturno | J22: 0
B23: E | C23: Adicional de Hora Noturna Reduzida | J23: 0
B24: F | C24: Outros (especificar) | J24: 0
B25: TOTAL DO MÓDULO 1 | J25: =TRUNC(SUM(J19:J24),2) -> 2263.63
B27: MÓDULO 2 – ENCARGOS E BENEFÍCIOS ANUAIS, MENSAIS E DIÁRIOS
B28: Submódulo 2.1 - 13º Salário, Férias e Adicional de Férias | I28: % | J28: VALOR (R$)
B29: A | C29: 13 (Décimo-terceiro) salário | I29: 0.0833 | J29: =I29*J25 -> 188.560379
B30: B | C30: Férias e Adicional de Férias | I30: 0.121 | J30: =I30*J25 -> 273.89923
B31: TOTAL SUBMÓDULO 2.1 | I31: =TRUNC(SUM(I29:I30),4) -> 0.2043 | J31: =TRUNC(SUM(J29:J30),2) -> 462.45
B33: Submódulo 2.2 - GPS, FGTS e Outras Contribuições | I33: % | J33: VALOR (R$)
B34: A | C34: INSS | I34: 0.2 | J34: =$I34*($J$31+$J$25) -> 545.216
B35: B | C35: Salário Educação | I35: 0.025 | J35: =$I35*($J$31+$J$25) -> 68.152
B36: C | C36: SAT | I36: 0.03 | J36: 81.7824
B37: D | C37: SESC ou SESI | I37: 0.015 | J37: 40.8912
B38: E | C38: SENAI - SENAC | I38: 0.01 | J38: 27.2608
B39: F | C39: SEBRAE | I39: 0.006 | J39: 16.35648
B40: G | C40: INCRA | I40: 0.002 | J40: 5.45216
B41: H | C41: FGTS | I41: 0.08 | J41: 218.0864
B42: TOTAL SUBMÓDULO 2.2 | I42: =SUM(I34:I41) -> 0.368 | J42: =TRUNC(SUM(J34:J41),2) -> 1003.19
B44: Submódulo 2.3 - Benefícios Mensais e Diários | J44: VALOR (R$)
B45: A | C45: Transporte | I45: - | J45: =((4*2)*22)-(6%*J25) -> 40.1822
B46: B | C46: Auxílio-Refeição/Alimentação | I46: - | J46: =26.48*22*80% -> 466.048
B47: C | C47: Seguro de vida | I47: - | J47: 20
B48: D | C48: Auxílio Saúde - PAF | I48: - | J48: 20.05
B49: E | C49: Contribuição Assistencial Patronal | I49: - | J49: 9.77
B50: F | C50: Outros (especificar) | I50: -
B51: TOTAL SUBMÓDULO 2.3 | J51: =TRUNC(SUM(J45:J50),2) -> 556.05
B53: QUADRO-RESUMO DO MÓDULO 2 - ENCARGOS, BENEFÍCIOS ANUAIS, MENSAIS E DIÁRIOS
B54: Módulo 2 - Encargos, Benefícios Anuais, Mensais e Diários | J54: VALOR (R$)
B55: 2.1 | C55: 13º Salário, Férias e Adicional de Férias | J55: =J31 -> 462.45
B56: 2.2 | C56: GPS, FGTS e Outras Contribuições | J56: =J42 -> 1003.19
B57: 2.3 | C57: Benefícios Mensais e Diários | J57: =J51 -> 556.05
B58: TOTAL DO MÓDULO 2 | J58: =TRUNC(SUM(J55:J57),2) -> 2021.69
B60: MÓDULO 3 – PROVISÃO PARA RESCISÃO
B61: 3 | C61: PROVISÃO PARA RESCISÃO | I61: % | J61: VALOR (R$)
B62: A | C62: Aviso Prévio Indenizado | I62: 0.0284 | J62: =I62*$J$25 -> 64.287092
B63: B | C63: Incidência do FGTS sobre Aviso Prévio Indenizado | I63: =0.08*I62 -> 0.002272 | J63: 5.14296736
B64: C | C64: Multa do FGTS e Contribuição Social sobre o Aviso Prévio Indenizado | I64: 0.05 | J64: 113.1815
B65: D | C65: Aviso Prévio Trabalhado | I65: 0.01 | J65: 22.6363
B66: E | C66: Incidência dos encargos do submódulo 2.2 sobre Aviso Prévio Trabalhado | I66: =I42*I65 -> 0.00368 | J66: 8.3301584
B67: F | C67: Multa do FGTS e Contribuição Social sobre o Aviso Prévio Trabalhado. | I67: 0.05 | J67: 113.1815
B68: TOTAL DO MÓDULO 3 | I68: =TRUNC(SUM(I62:I67),4) -> 0.1443 | J68: =TRUNC(SUM(J62:J67),2) -> 326.75
B70: MÓDULO 4 – CUSTO DE REPOSIÇÃO DO PROFISSIONAL AUSENTE
B71: Submódulo 4.1 - Ausências Legais | I71: % | J71: VALOR (R$)
B72: A | C72: Férias | I72: 0.0833 | J72: =I72*$J$25 -> 188.560379
B73: B | C73: Ausências Legais | I73: 0.025 | J73: =I73*$J$25 -> 56.59075
B74: C | C74: Licença Paternidade | I74: 0.025 | J74: =I74*$J$25 -> 56.59075
B75: D | C75: Ausência por Acidente de Trabalho | I75: 0.02 | J75: =I75*$J$25 -> 45.2726
B76: E | C76: Afastamento Maternidade | I76: 0.03 | J76: =I76*$J$25 -> 67.9089
B77: F | C77: Outros (especificar)
B78: TOTAL SUBMÓDULO 4.1 | J78: =TRUNC(SUM(J72:J77),2) -> 414.92
B80: Submódulo 4.2 - Intrajornada | I80: % | J80: VALOR (R$)
B81: A | C81: Intervalo para Repouso ou Alimentação | I81: 0 | J81: =$J$25*I81 -> 0
B82: TOTAL SUBMÓDULO 4.2 | I82: =TRUNC(SUM(I81),4) -> 0 | J82: =TRUNC(SUM(J81),2) -> 0
B84: QUADRO-RESUMO DO MÓDULO 4 - CUSTO DE REPOSIÇÃO DO PROFISSIONAL AUSENTE
B85: Módulo 4 - Custo de Reposição do Profissional Ausente | J85: VALOR (R$)
B86: 4.1 | C86: Ausências Legais | J86: =J78 -> 414.92
B87: 4.2 | C87: Intrajornada | J87: =J82 -> 0
B88: TOTAL DO MÓDULO 4 | J88: =TRUNC(SUM(J86:J87),2) -> 414.92
B90: MÓDULO 5 – INSUMOS DIVERSOS
B91: 5 | C91: INSUMOS DIVERSOS | J91: VALOR (R$)
B92: A | C92: Uniformes | I92: - | J92: =Uniformes_Equip.!E6 -> 109.2786111
B93: B | C93: Materiais | I93: - | J93: -
B94: C | C94: Equipamentos | I94: - | J94: 0
B95: D | C95: Outros | I95: - | J95: 0
B96: TOTAL DO MÓDULO 5 | I96: - | J96: =SUM(J92:J95) -> 109.2786111
B98: MÓDULO 6 – CUSTOS INDIRETOS, TRIBUTOS E LUCRO
B99: 6 | C99: CUSTOS INDIRETOS, TRIBUTOS E LUCRO | I99: % | J99: VALOR (R$)
B100: A | C100: Custos Indiretos | I100: 0.03 | J100: =TRUNC(I100*J116,2) -> 154.08
B101: B | C101: Lucro | I101: 0.0675 | J101: =TRUNC(I101*(J100+J116),2) -> 357.09
B102: C | C102: TRIBUTOS | F102: Base Cálculo | H102: =ROUND((J116+J100+J101)/(1-I102),2) -> 6585.92 | I102: =I103+I104+I105 -> 0.1425 | J102: =H102*I102 -> 938.4936
B103: C.1 | C103: PIS | I103: 0.0165 | J103: =H102*I103 -> 108.66768
B104: C.2 | C104: COFINS | I104: 0.076 | J104: =H102*I104 -> 500.52992
B105: C.3 | C105: ISSQN | I105: 0.05 | J105: =H102*I105 -> 329.296
B106: TOTAL DO MÓDULO 6 | J106: =J100+J101+J102 -> 1449.6636
B109: QUADRO RESUMO DO CUSTO POR EMPREGADO
B110: Mão-de-Obra vinculada à execução contratual (valor por empregado) | J110: VALOR (R$)
B111: A | C111: =B17 -> MÓDULO 1 - COMPOSIÇÃO DA REMUNERAÇÃO | J111: =J25 -> 2263.63
B112: B | C112: =B27 -> MÓDULO 2 – ENCARGOS E BENEFÍCIOS ANUAIS, MENSAIS E DIÁRIOS | J112: =J58 -> 2021.69
B113: C | C113: =B60 -> MÓDULO 3 – PROVISÃO PARA RESCISÃO | J113: =J68 -> 326.75
B114: D | C114: =B70 -> MÓDULO 4 – CUSTO DE REPOSIÇÃO DO PROFISSIONAL AUSENTE | J114: =J88 -> 414.92
B115: E | C115: =B90 -> MÓDULO 5 – INSUMOS DIVERSOS | J115: =J96 -> 109.2786111
C116: Subtotal (A + B + C + D + E) | J116: =TRUNC(SUM(J111:J115),2) -> 5136.26
B117: F | C117: =B98 -> MÓDULO 6 – CUSTOS INDIRETOS, TRIBUTOS E LUCRO | J117: =J106 -> 1449.6636
B118: PREÇO TOTAL POR EMPREGADO | J118: =TRUNC(SUM(J116:J117),2) -> 6585.92

Sheet Uniformes_Equip.
A1: 1ª Superintendência Regional – MG | B1: Preço médio unitário (R$) | C1: Quantidade anual | D1: Custo anual por posto (R$) | E1: Custo mensal por posto (R$)
A2: Calça jeans | B2: =AVERAGE(93.32,127.79,130.98) -> 117.3633333 | C2: 4 | D2: =C2*B2 -> 469.4533333 | E2: =D2/12 -> 39.12111111
A3: Camisa azul claro social, algodão, manga curta, com emblema da empresa pintado. | B3: =AVERAGE(149.9,180,219.9) -> 183.2666667 | C3: 4 | D3: =C3*B3 -> 733.0666667 | E3: =D3/12 -> 61.08888889
A4: Par de sapato preto | B4: =AVERAGE(43.7,48.99,50.9) -> 47.86333333 | C4: 2 | D4: =C4*B4 -> 95.72666667 | E4: =D4/12 -> 7.977222222
A5: Crachá | B5: =AVERAGE(12,13.49,13.8) -> 13.09666667 | C5: 1 | D5: 13.09666667 | E5: 1.091388889
D6: Total | E6: =SUM(E2:E4,E5) -> 109.2786111

Sheet Supervisor - Montes Claros
A1: 1ª Superintendência Regional – Montes Claros / MG | B1: Discriminação dos Serviços
B2: B | C2: Município | J2: Montes Claros/MG
B3: C | C3: Ano do Acordo, Convenção ou Dissídio Coletivo | J3: 2023
B4: D | C4: Nº de meses de execução contratual | J4: 12
B6: Identificação do Serviço
B7: Tipo de Serviço | D7: Unidade de Medida | F7: Quantidade total a contratar
B8: Supervisor | D8: SERVIÇO | F8: 1
B10: Dados para composição dos custos referentes à mão-de-obra
B11: 1 | C11: Tipo de serviço (mesmo serviço com características distintas) | J11: =B8 -> Supervisor
B12: 2 | C12: Classificação Brasileira de Ocupações (CBO) | J12: 7823-05; 7823-10; 7825-10 e 4101-05
B13: 3 | C13: Salário Nominativo da Categoria Profissional | J13: 2793.9
B14: 4 | C14: Categoria profissional (vinculada à execução contratual) | J14: =B8 -> Supervisor
B15: 5 | C15: Data base da categoria (dia/mês/ano) | J15: 2023-01-01
B17: MÓDULO 1 - COMPOSIÇÃO DA REMUNERAÇÃO
B18: 1 | C18: COMPOSIÇÃO DA REMUNERAÇÃO | I18: % | J18: VALOR (R$)
B19: A | C19: Salário Base | J19: =J13 -> 2793.9
B20: B | C20: Adicional Periculosidade | J20: 0
B21: C | C21: Adicional Insalubridade | J21: =I21*J19 -> 0
B22: D | C22: Adicional Noturno | J22: 0
B23: E | C23: Adicional de Hora Noturna Reduzida | J23: 0
B24: F | C24: Outros (especificar) | J24: 0
B25: TOTAL DO MÓDULO 1 | J25: =TRUNC(SUM(J19:J24),2) -> 2793.9
B27: MÓDULO 2 – ENCARGOS E BENEFÍCIOS ANUAIS, MENSAIS E DIÁRIOS
B28: Submódulo 2.1 - 13º Salário, Férias e Adicional de Férias | I28: % | J28: VALOR (R$)
B29: A | C29: 13 (Décimo-terceiro) salário | I29: 0.0833 | J29: =I29*J25 -> 232.73187
B30: B | C30: Férias e Adicional de Férias | I30: 0.121 | J30: =I30*J25 -> 338.0619
B31: TOTAL SUBMÓDULO 2.1 | I31: =TRUNC(SUM(I29:I30),4) -> 0.2043 | J31: =TRUNC(SUM(J29:J30),2) -> 570.79
B33: Submódulo 2.2 - GPS, FGTS e Outras Contribuições | I33: % | J33: VALOR (R$)
B34: A | C34: INSS | I34: 0.2 | J34: =$I34*($J$31+$J$25) -> 672.938
B35: B | C35: Salário Educação | I35: 0.025 | J35: =$I35*($J$31+$J$25) -> 84.11725
B36: C | C36: SAT | I36: 0.03 | J36: 100.9407
B37: D | C37: SESC ou SESI | I37: 0.015 | J37: 50.47035
B38: E | C38: SENAI - SENAC | I38: 0.01 | J38: 33.6469
B39: F | C39: SEBRAE | I39: 0.006 | J39: 20.18814
B40: G | C40: INCRA | I40: 0.002 | J40: 6.72938
B41: H | C41: FGTS | I41: 0.08 | J41: 269.1752
B42: TOTAL SUBMÓDULO 2.2 | I42: =SUM(I34:I41) -> 0.368 | J42: =TRUNC(SUM(J34:J41),2) -> 1238.2
B44: Submódulo 2.3 - Benefícios Mensais e Diários | J44: VALOR (R$)
B45: A | C45: Transporte | I45: - | J45: =((4*2)*22)-(6%*J25) -> 8.366
B46: B | C46: Auxílio-Refeição/Alimentação | I46: - | J46: =26.14*22-115.01 -> 460.07
B47: C | C47: Seguro de vida | I47: - | J47: 20
B48: D | C48: Auxílio Saúde - PAF | I48: - | J48: 43.66
B49: E | C49: Contribuição Assistencial Patronal | I49: -
B50: F | C50: Outros (especificar) | I50: -
B51: TOTAL SUBMÓDULO 2.3 | J51: =TRUNC(SUM(J45:J50),2) -> 532.09
B53: QUADRO-RESUMO DO MÓDULO 2 - ENCARGOS, BENEFÍCIOS ANUAIS, MENSAIS E DIÁRIOS
B54: Módulo 2 - Encargos, Benefícios Anuais, Mensais e Diários | J54: VALOR (R$)
B55: 2.1 | C55: 13º Salário, Férias e Adicional de Férias | J55: =J31 -> 570.79
B56: 2.2 | C56: GPS, FGTS e Outras Contribuições | J56: =J42 -> 1238.2
B57: 2.3 | C57: Benefícios Mensais e Diários | J57: =J51 -> 532.09
B58: TOTAL DO MÓDULO 2 | J58: =TRUNC(SUM(J55:J57),2) -> 2341.08
B60: MÓDULO 3 – PROVISÃO PARA RESCISÃO
B61: 3 | C61: PROVISÃO PARA RESCISÃO | I61: % | J61: VALOR (R$)
B62: A | C62: Aviso Prévio Indenizado | I62: 0.0284 | J62: =I62*$J$25 -> 79.34676
B63: B | C63: Incidência do FGTS sobre Aviso Prévio Indenizado | I63: =0.08*I62 -> 0.002272 | J63: 6.3477408
B64: C | C64: Multa do FGTS e Contribuição Social sobre o Aviso Prévio Indenizado | I64: 0.05 | J64: 139.695
B65: D | C65: Aviso Prévio Trabalhado | I65: 0.01 | J65: 27.939
B66: E | C66: Incidência dos encargos do submódulo 2.2 sobre Aviso Prévio Trabalhado | I66: =I42*I65 -> 0.00368 | J66: 10.281552
B67: F | C67: Multa do FGTS e Contribuição Social sobre o Aviso Prévio Trabalhado. | I67: 0.05 | J67: 139.695
B68: TOTAL DO MÓDULO 3 | I68: =TRUNC(SUM(I62:I67),4) -> 0.1443 | J68: =TRUNC(SUM(J62:J67),2) -> 403.3
B70: MÓDULO 4 – CUSTO DE REPOSIÇÃO DO PROFISSIONAL AUSENTE
B71: Submódulo 4.1 - Ausências Legais | I71: % | J71: VALOR (R$)
B72: A | C72: Férias | I72: 0.0833 | J72: =I72*$J$25 -> 232.73187
B73: B | C73: Ausências Legais | I73: 0.025 | J73: =I73*$J$25 -> 69.8475
B74: C | C74: Licença Paternidade | I74: 0.025 | J74: =I74*$J$25 -> 69.8475
B75: D | C75: Ausência por Acidente de Trabalho | I75: 0.02 | J75: =I75*$J$25 -> 55.878
B76: E | C76: Afastamento Maternidade | I76: 0.03 | J76: =I76*$J$25 -> 83.817
B77: F | C77: Outros (especificar)
B78: TOTAL SUBMÓDULO 4.1 | J78: =TRUNC(SUM(J72:J77),2) -> 512.12
B80: Submódulo 4.2 - Intrajornada | I80: % | J80: VALOR (R$)
B81: A | C81: Intervalo para Repouso ou Alimentação | I81: 0 | J81: =$J$25*I81 -> 0
B82: TOTAL SUBMÓDULO 4.2 | I82: =TRUNC(SUM(I81),4) -> 0 | J82: =TRUNC(SUM(J81),2) -> 0
B84: QUADRO-RESUMO DO MÓDULO 4 - CUSTO DE REPOSIÇÃO DO PROFISSIONAL AUSENTE
B85: Módulo 4 - Custo de Reposição do Profissional Ausente | J85: VALOR (R$)
B86: 4.1 | C86: Ausências Legais | J86: =J78 -> 512.12
B87: 4.2 | C87: Intrajornada | J87: =J82 -> 0
B88: TOTAL DO MÓDULO 4 | J88: =TRUNC(SUM(J86:J87),2) -> 512.12
B90: MÓDULO 5 – INSUMOS DIVERSOS
B91: 5 | C91: INSUMOS DIVERSOS | J91: VALOR (R$)
B92: A | C92: Uniformes | I92: - | J92: =Uniformes_Equip.!E6 -> 109.2786111
B93: B | C93: Materiais | I93: - | J93: -
B94: C | C94: Equipamentos | I94: - | J94: 0
B95: D | C95: Outros | I95: - | J95: 0
B96: TOTAL DO MÓDULO 5 | I96: - | J96: =SUM(J92:J95) -> 109.2786111
B98: MÓDULO 6 – CUSTOS INDIRETOS, TRIBUTOS E LUCRO
B99: 6 | C99: CUSTOS INDIRETOS, TRIBUTOS E LUCRO | I99: % | J99: VALOR (R$)
B100: A | C100: Custos Indiretos | I100: 0.03 | J100: =TRUNC(I100*J116,2) -> 184.79
B101: B | C101: Lucro | I101: 0.0675 | J101: =TRUNC(I101*(J100+J116),2) -> 428.25
B102: C | C102: TRIBUTOS | F102: Base Cálculo | H102: =ROUND((J116+J100+J101)/(1-I102),2) -> 7718.19 | I102: =I103+I104+I105 -> 0.1225 | J102: =H102*I102 -> 945.478275
B103: C.1 | C103: PIS | I103: 0.0165 | J103: =H102*I103 -> 127.350135
B104: C.2 | C104: COFINS | I104: 0.076 | J104: =H102*I104 -> 586.58244
B105: C.3 | C105: ISSQN | I105: 0.03 | J105: =H102*I105 -> 231.5457
B106: TOTAL DO MÓDULO 6 | J106: =J100+J101+J102 -> 1558.518275
B109: QUADRO RESUMO DO CUSTO POR EMPREGADO
B110: Mão-de-Obra vinculada à execução contratual (valor por empregado) | J110: VALOR (R$)
B111: A | C111: =B17 -> MÓDULO 1 - COMPOSIÇÃO DA REMUNERAÇÃO | J111: =J25 -> 2793.9
B112: B | C112: =B27 -> MÓDULO 2 – ENCARGOS E BENEFÍCIOS ANUAIS, MENSAIS E DIÁRIOS | J112: =J58 -> 2341.08
B113: C | C113: =B60 -> MÓDULO 3 – PROVISÃO PARA RESCISÃO | J113: =J68 -> 403.3
B114: D | C114: =B70 -> MÓDULO 4 – CUSTO DE REPOSIÇÃO DO PROFISSIONAL AUSENTE | J114: =J88 -> 512.12
B115: E | C115: =B90 -> MÓDULO 5 – INSUMOS DIVERSOS | J115: =J96 -> 109.2786111
C116: Subtotal (A + B + C + D + E) | J116: =TRUNC(SUM(J111:J115),2) -> 6159.67
B117: F | C117: =B98 -> MÓDULO 6 – CUSTOS INDIRETOS, TRIBUTOS E LUCRO | J117: =J106 -> 1558.518275
B118: PREÇO TOTAL POR EMPREGADO | J118: =TRUNC(SUM(J116:J117),2) -> 7718.18
